bitfinex-derivatives/quotes_ETHF0:USTF0_20260204
["timestamp","ask_amount","ask_price","bid_price","bid_amount"]
[1770176709942,6.88794118,2284.4,2283.7,0.21923]
[1770176710253,2.50794118,2284.1,2283.3,2.49292265]
[1770176710646,6.88794118,2284.1,2283.3,2.49292265]
[1770176711042,4.38,2284.1,2283.4,0.21926]
[1770176711355,1.522,2284.2,2283.4,2.49291265]
[1770176711548,4.307814,2284.1,2283.4,2.49291265]
[1770176712048,4.307814,2284.0,2283.4,2.49291265]
[1770176712249,4.307814,2284.1,2283.4,2.49291265]
[1770176712651,4.307814,2284.0,2283.4,2.49291265]
[1770176713151,2.50794118,2284.5,2283.7,2.27365265]
[1770176713350,2.50794118,2284.7,2283.7,2.27365265]
[1770176713547,2.50794118,2284.5,2283.5,2.27365265]
[1770176713753,2.50794118,2284.5,2283.2,2.49293265]
[1770176714055,2.50794118,2284.2,2283.2,2.49293265]
[1770176714352,2.50794118,2284.0,2283.2,2.49293265]
[1770176714753,6.81575518,2283.8,2283.2,0.21928]
[1770176714954,0.21915,2284.6,2283.2,0.21928]
[1770176714955,4.307814,2284.1,2283.2,0.21928]
[1770176715152,2.50794118,2284.0,2283.2,0.21928]
[1770176715353,6.81575518,2283.7,2282.9,2.27365265]
[1770176715655,2.50794118,2283.7,2282.9,2.27365265]
[1770176715954,6.81575518,2283.7,2282.9,2.27365265]
[1770176717056,2.50794118,2283.9,2282.9,2.27365265]
[1770176718053,6.81575518,2283.9,2282.9,2.27365265]
[1770176718255,2.50794118,2283.8,2282.9,2.27365265]
[1770176718447,2.50794118,2283.7,2282.9,2.27365265]
[1770176718652,2.50794118,2283.7,2283.1,0.21929]
[1770176718653,6.81575518,2283.7,2283.1,0.21929]
[1770176719052,4.307814,2283.6,2283.1,0.21929]
[1770176719249,4.307814,2283.5,2283.1,0.21929]
[1770176719451,4.307814,2283.6,2283.1,0.21929]
[1770176719952,4.307814,2283.5,2283.1,0.21929]
[1770176720149,4.307814,2283.6,2283.1,0.21929]
[1770176720554,2.50794118,2284.0,2283.1,2.49294265]
[1770176720754,4.307814,2283.9,2283.1,2.49294265]
[1770176720956,6.62167059,2283.7,2283.1,0.21929]
[1770176721256,2.31385659,2283.9,2283.1,2.72610402]
[1770176721554,6.62167059,2283.9,2283.1,2.72610402]
[1770176721753,4.307814,2283.8,2283.1,2.72610402]
[1770176722455,4.307814,2283.7,2283.1,2.72610402]
[1770176723557,2.31385659,2284.1,2283.3,2.72608402]
[1770176723755,2.31385659,2284.1,2283.4,2.50681402]
[1770176724254,4.307814,2284.0,2283.4,2.50681402]
[1770176724757,4.307814,2283.9,2283.5,2.72606402]
[1770176724951,2.31385659,2284.1,2283.5,2.72606402]
[1770176725155,4.307814,2283.9,2283.5,2.72606402]
[1770176727556,2.31385659,2284.6,2283.9,2.50681402]
[1770176728059,4.307814,2284.4,2283.9,2.50681402]
[1770176728258,2.31385659,2284.1,2283.8,0.21922]
[1770176728455,7.37752238,2285.6,2285.2,0.21909]
[1770176728655,2.72181245,2285.6,2285.2,0.21909]
[1770176728861,8.685414,2285.3,2284.6,2.50681402]
[1770176729062,2.31385659,2285.3,2284.6,0.21915]
[1770176729262,13.72108304,2285.3,2284.6,0.21915]
[1770176729560,2.31385659,2285.6,2284.7,2.72595402]
[1770176729954,2.31385659,2285.4,2284.7,0.21914]
[1770176730154,2.31385659,2285.2,2284.7,0.21914]
[1770176730364,2.31385659,2285.2,2284.6,0.00566957]
[1770176730365,2.31385659,2285.1,2284.6,0.00566957]
[1770176730662,2.31385659,2285.1,2284.2,2.72599402]
[1770176730663,8.685414,2284.9,2284.2,2.72599402]
[1770176730856,5.03566904,2285.1,2284.2,2.72599402]
[1770176731161,13.72108304,2285.1,2284.3,2.72598402]
[1770176731357,5.03566904,2285.1,2284.3,2.72598402]
[1770176731557,10.99927059,2284.8,2284.3,0.22303098]
[1770176731957,8.685414,2284.7,2284.3,0.22303098]
[1770176732158,2.31385659,2284.8,2284.3,0.22303098]
[1770176732159,8.17879271,2284.8,2284.4,2.72597402]
[1770176732464,0.00402198,2285.1,2284.5,2.72597402]
[1770176732663,0.00402198,2285.1,2284.7,0.21914]
[1770176733061,10.05746019,2285.0,2284.7,0.21914]
[1770176733256,7.3033336,2284.9,2284.7,0.21914]
[1770176733461,6.8630936,2285.0,2284.7,0.21914]
[1770176733663,6.4179136,2285.0,2284.7,0.21914]
[1770176733866,2.31787857,2285.1,2284.7,0.21914]
[1770176734064,4.9640036,2285.0,2284.7,0.21914]
[1770176734364,4.27610262,2284.6,2283.9,7.74481402]
[1770176734566,2.31385659,2284.6,2283.9,6.88881402]
[1770176734763,6.99791507,2284.5,2283.9,6.88881402]
[1770176734968,4.27610262,2284.8,2284.0,2.50681402]
[1770176735164,4.27610262,2284.9,2284.3,0.21917]
[1770176735365,5.85807507,2285.0,2284.4,2.50681402]
[1770176735564,0.00402198,2285.1,2284.4,2.50681402]
[1770176735770,5.85807507,2285.0,2284.4,2.50681402]
[1770176735970,4.35453904,2285.0,2284.1,2.50681402]
[1770176736170,4.35453904,2285.0,2283.9,4.382]
[1770176736171,2.31385659,2284.8,2283.9,6.88881402]
[1770176736371,3.59821262,2284.7,2283.9,6.88881402]
[1770176736667,2.04068245,2284.7,2284.0,2.50681402]
[1770176736870,0.69232245,2284.7,2284.2,2.50681402]
[1770176737066,2.45e-06,2284.7,2284.2,2.50681402]
[1770176737263,2.43731507,2284.7,2284.4,0.21916]
[1770176737470,2.31787857,2285.1,2284.4,0.21916]
[1770176737671,2.31787857,2285.1,2284.4,1.56851895]
[1770176738773,2.31787857,2285.1,2284.4,0.21916]
[1770176741776,2.31787857,2285.1,2283.9,4.382]
[1770176742076,2.31787857,2285.1,2283.8,0.21922]
[1770176742472,2.31787857,2285.1,2283.3,0.21926]
[1770176742677,2.31787857,2285.1,2283.4,0.21926]
[1770176743670,2.31787857,2285.1,2283.3,2.11284767]
[1770176743875,2.31787857,2285.1,2283.5,2.11284767]
[1770176744076,2.31787857,2285.1,2283.9,2.11284767]
[1770176744275,0.00402198,2285.1,2284.9,0.21912]
[1770176744475,3.94324198,2285.3,2284.3,2.12462994]
[1770176744876,2.31385659,2285.7,2284.6,2.12462994]
[1770176745173,6.69485659,2286.5,2284.6,2.12462994]
[1770176745370,2.31385659,2286.4,2284.6,2.12462994]
[1770176745576,4.34210367,2286.4,2284.6,0.00363089]
[1770176745776,2.31385659,2286.3,2284.6,0.00363089]
[1770176745977,2.53284659,2286.3,2284.6,0.00363089]
[1770176746178,2.31385659,2286.2,2284.6,0.00363089]
[1770176746578,8.83039965,2286.2,2284.6,0.00363089]
[1770176746877,2.31385659,2285.8,2284.5,0.21915]
[1770176747074,2.31385659,2285.8,2284.0,2.15545945]
[1770176747273,2.31385659,2285.7,2283.9,0.21921]
[1770176747475,2.31385659,2285.5,2283.9,0.21921]
[1770176747677,2.31385659,2285.3,2283.9,0.21921]
[1770176747874,2.31385659,2285.3,2284.0,2.37465945]
[1770176748075,2.31385659,2285.3,2283.7,0.856]
[1770176748076,2.31385659,2285.3,2284.1,2.37464945]
[1770176749274,2.31385659,2285.3,2284.3,2.36562445]
[1770176752883,2.31385659,2285.3,2284.3,0.21917]
[1770176753778,2.31385659,2285.3,2284.0,2.29515743]
[1770176753979,2.31385659,2285.3,2284.0,2.51435743]
[1770176754185,2.31385659,2285.3,2284.3,0.21917]
[1770176754382,2.31385659,2285.3,2284.4,0.21917]
[1770176754584,2.31385659,2285.3,2284.5,0.21915]
[1770176754979,2.31385659,2285.3,2284.6,0.21915]
[1770176755183,2.39944046,2285.7,2284.7,0.21914]
[1770176755784,2.39944046,2285.7,2284.7,2.62267714]
[1770176756185,2.39944046,2285.7,2284.7,0.21914]
[1770176756785,2.39944046,2285.7,2284.8,0.21913]
[1770176756987,2.39944046,2285.7,2284.7,2.40353714]
[1770176757787,2.39745378,2286.0,2285.1,0.2191]
[1770176759685,2.39745378,2286.0,2285.2,0.21909]
[1770176759884,2.39745378,2286.0,2285.3,0.21908]
[1770176761684,2.39745378,2286.0,2284.7,0.21913]
[1770176762387,4.42320958,2286.0,2284.7,0.21913]
[1770176762586,2.39745378,2285.9,2284.7,0.21913]
[1770176762880,2.39745378,2285.9,2284.8,0.21913]
[1770176763787,2.39745378,2285.9,2284.6,2.42389043]
[1770176763982,2.39745378,2285.9,2285.1,0.2191]
[1770176764189,2.39745378,2285.9,2284.4,2.4833343]
[1770176764787,2.39745378,2285.9,2284.6,0.21914]
[1770176770496,2.39745378,2285.7,2284.6,0.21914]
[1770176771892,2.55810911,2284.6,2284.5,2.4833343]
[1770176772094,2.39745378,2285.5,2284.4,0.21917]
[1770176773098,2.40059553,2285.5,2284.4,0.22415017]
[1770176775201,2.40059553,2285.5,2284.4,0.27522867]
[1770176776401,2.40059553,2285.5,2284.5,0.28909467]
[1770176777200,2.40059553,2285.5,2284.6,0.28908467]
[1770176777398,2.40059553,2285.5,2284.7,0.28907467]
[1770176777801,0.00314175,2285.5,2284.8,0.06993467]
[1770176778006,2.4872566,2285.5,2284.8,0.06993467]
[1770176778702,0.00314175,2285.5,2284.8,0.06993467]
[1770176779105,0.00314175,2285.5,2284.8,0.28906467]
[1770176779300,0.00314175,2285.5,2284.9,0.21912]
[1770176779501,2.48529033,2285.5,2284.9,0.21912]
[1770176779706,2.48529033,2285.5,2284.4,0.00498017]
[1770176780508,9.00183339,2285.5,2284.4,0.00498017]
[1770176780706,2.48280572,2285.4,2284.4,0.00498017]
[1770176781507,2.48280572,2285.4,2283.7,0.21922]
[1770176781806,2.48280572,2285.4,2283.8,0.21922]
[1770176782204,2.48767061,2285.3,2283.8,0.21922]
[1770176782401,2.48767061,2285.1,2283.8,0.22006072]
[1770176784708,2.48767061,2285.1,2283.8,0.00084072]
[1770176784709,2.70677061,2285.1,2283.8,0.00084072]
[1770176786113,2.49208827,2284.7,2283.3,1.35646331]
[1770176788018,2.49208827,2284.7,2283.3,1.41208482]
[1770176788219,2.49208827,2284.7,2283.6,0.06778273]
[1770176788418,2.49208827,2284.7,2283.8,0.06778273]
[1770176789021,2.48634213,2285.3,2283.8,0.06778273]
[1770176789518,2.48634213,2285.3,2284.0,0.2192]
[1770176791016,2.48634213,2285.3,2284.0,0.30949242]
[1770176792022,2.47508729,2285.1,2283.5,0.09029242]
[1770176792219,8.41308729,2285.1,2283.5,0.09029242]
[1770176792420,2.48192461,2285.0,2283.5,0.09029242]
[1770176793518,2.48192461,2285.0,2283.7,0.21923]
[1770176793719,2.48192461,2284.8,2283.3,1.13719331]
[1770176794027,2.48192461,2284.7,2283.3,1.13719331]
[1770176798129,2.48192461,2284.7,2283.2,0.21928]
[1770176799330,2.48884903,2284.6,2283.2,0.21928]
[1770176803337,2.70799903,2284.6,2283.2,0.21928]
[1770176806738,2.4987849,2284.4,2283.2,0.21928]
[1770176811544,2.49854347,2284.2,2283.2,0.21928]
[1770176813644,2.50893524,2284.1,2282.7,0.24637196]
[1770176817343,2.50893524,2284.1,2282.7,0.21933]
[1770176819839,2.51282504,2283.9,2282.8,0.02019069]
[1770176820038,2.51801658,2283.9,2282.8,0.02019069]
[1770176820640,2.51801658,2283.9,2283.1,0.24412652]
[1770176821641,0.00519154,2283.9,2283.4,0.02484652]
[1770176821841,2.51049713,2284.2,2283.4,0.24872017]
[1770176822852,0.00339119,2284.2,2283.6,0.24437786]
[1770176824449,0.00339119,2284.2,2283.7,0.21923]
[1770176825247,0.00339119,2284.2,2283.8,0.21922]
[1770176825650,0.00339119,2284.2,2283.9,0.21921]
[1770176826751,0.00339119,2284.2,2284.0,0.2192]
[1770176826951,2.51035146,2284.4,2284.0,0.2192]
[1770176827951,2.51391691,2284.4,2284.0,0.2192]
[1770176828152,0.00356545,2284.4,2284.1,0.21919]
[1770176828452,4.382,2285.0,2283.5,2.531855]
[1770176828453,2.52292039,2285.0,2284.2,0.21918]
[1770176829051,2.52292039,2285.0,2284.3,0.21917]
[1770176829348,2.52292039,2285.0,2283.8,0.21922]
[1770176829552,2.52292039,2285.0,2283.4,0.00461365]
[1770176829553,2.52292039,2284.7,2283.4,0.00461365]
[1770176830950,2.52292039,2284.7,2283.9,0.21921]
[1770176845663,2.52292039,2284.7,2284.0,0.2192]
[1770176846263,2.52292039,2284.7,2283.5,0.21925]
[1770176846856,2.52292039,2284.7,2283.6,0.21924]
[1770176848866,2.52292039,2284.7,2283.8,0.21922]
[1770176851169,2.52292039,2284.7,2283.9,0.21921]
[1770176855672,2.52292039,2284.7,2283.4,0.00461365]
[1770176856476,2.52292039,2284.7,2283.9,0.21921]
[1770176856777,2.52292039,2284.7,2283.4,0.00461365]
[1770176857275,2.52292039,2284.7,2283.9,0.21921]
[1770176857473,2.49841148,2284.5,2283.4,0.00461365]
[1770176857770,2.49841148,2284.3,2283.4,0.00461365]
[1770176857972,2.49841148,2284.3,2283.2,0.21928]
[1770176858177,2.49841148,2284.1,2282.7,0.21933]
[1770176858375,2.49841148,2283.9,2282.7,0.21933]
[1770176858976,2.49841148,2283.9,2282.7,0.22244551]
[1770176861778,2.49841148,2283.9,2282.7,0.82936317]
[1770176863473,2.49841148,2283.9,2282.7,0.22244551]
[1770176866678,2.71763148,2283.9,2282.7,0.00311551]
[1770176866869,2.71763148,2283.9,2282.3,0.21937]
[1770176867074,2.71763148,2283.9,2282.3,0.88953091]
[1770176867572,2.49841148,2283.5,2282.3,0.21937]
[1770176867778,2.49841148,2283.5,2282.3,0.22378902]
[1770176868576,2.49841148,2283.4,2282.3,0.22378902]
[1770176868775,2.50305125,2283.4,2282.3,0.22378902]
[1770176872483,2.36377695,2283.2,2282.3,0.22378902]
[1770176874083,2.36377695,2283.2,2281.8,0.21941]
[1770176874485,2.36377695,2283.0,2281.8,0.21941]
[1770176876582,2.36377695,2283.0,2281.8,0.94817636]
[1770176877083,2.36377695,2283.0,2281.9,0.72876636]
[1770176877283,2.36377695,2283.0,2282.0,0.94815636]
[1770176877479,2.36377695,2283.0,2282.0,0.21939]
[1770176877680,2.36377695,2283.0,2282.0,0.94815636]
[1770176879181,2.36377695,2283.0,2282.3,0.72792889]
[1770176879386,0.00463977,2283.4,2282.4,0.72792889]
[1770176879387,2.37901334,2283.3,2282.4,0.72792889]
[1770176879582,2.37901334,2283.3,2281.7,1.14035009]
[1770176879583,2.37901334,2283.3,2282.6,0.72792889]
[1770176879883,2.37901334,2283.3,2282.7,0.21933]
[1770176880085,0.00463977,2283.4,2282.8,0.96919248]
[1770176880290,2.37901334,2283.7,2283.0,0.74987248]
[1770176880490,2.37901334,2283.7,2282.9,0.21931]
[1770176880992,2.37901334,2283.7,2282.4,0.74987248]
[1770176881286,2.38221739,2283.7,2282.4,0.00351245]
[1770176882487,2.37901334,2283.2,2281.7,1.35977009]
[1770176882694,2.59831334,2283.0,2281.1,0.96459488]
[1770176882894,2.37901334,2282.9,2281.1,0.96459488]
[1770176883092,2.37901334,2282.8,2281.1,0.96459488]
[1770176883493,2.37901334,2282.8,2281.1,0.9657222]
[1770176883692,2.37901334,2282.8,2281.1,0.22060732]
[1770176884293,2.37901334,2282.8,2281.1,0.9566931]
[1770176887599,2.37901334,2282.8,2281.2,0.73725341]
[1770176887794,2.37901334,2282.8,2281.3,0.73725341]
[1770176888097,2.37901334,2282.6,2281.3,0.73725341]
[1770176888800,2.37901334,2282.9,2282.0,0.74567522]
[1770176888999,2.37901334,2282.9,2282.0,0.96507522]
[1770176889797,2.37901334,2282.9,2281.6,0.74567522]
[1770176890097,2.37901334,2282.9,2281.4,0.96512522]
[1770176890297,2.37901334,2282.9,2281.5,0.77255544]
[1770176891001,2.37901334,2282.9,2281.5,0.99199544]
[1770176891201,2.37901334,2282.9,2281.6,0.77255544]
[1770176892500,2.37901334,2282.9,2281.6,0.99198544]
[1770176893903,2.37901334,2282.9,2281.7,0.74246599]
[1770176896207,2.37901334,2282.9,2281.7,0.96188599]
[1770176896506,2.37901334,2282.9,2281.7,0.21942]
[1770176896708,2.37901334,2282.9,2281.8,0.96455511]
[1770176897606,2.37901334,2282.9,2281.9,0.74514511]
[1770176898103,2.37901334,2282.9,2281.8,0.21941]
[1770176898802,2.37901334,2282.9,2281.4,4.0899832]
[1770176899001,2.37901334,2282.9,2281.3,0.74332628]
[1770176899202,2.37901334,2282.9,2281.3,0.96278628]
[1770176899404,2.37901334,2282.9,2281.2,6.64154638]
[1770176899405,2.37901334,2282.9,2281.4,0.96277628]
[1770176899603,2.37901334,2282.9,2281.6,0.74332628]
[1770176900110,2.37901334,2282.9,2281.5,0.21944]
[1770176900610,2.37901334,2282.8,2281.5,0.21944]
[1770176900810,2.33810087,2282.6,2281.5,0.21944]
[1770176901808,2.33810087,2282.5,2281.5,0.21944]
[1770176903908,2.33810087,2282.5,2281.1,0.00112732]
[1770176904113,2.33810087,2282.3,2281.1,0.00112732]
[1770176904509,2.33810087,2282.3,2281.1,0.22060732]
[1770176908013,2.33810087,2282.3,2281.2,0.7572295]
[1770176908213,2.33810087,2282.3,2281.1,0.22060732]
[1770176909409,2.33810087,2282.1,2280.6,0.21953]
[1770176909608,2.03108776,2282.2,2280.7,0.75865434]
[1770176909609,2.33810087,2282.0,2280.7,0.75865434]
[1770176910515,2.33810087,2281.8,2280.7,0.75865434]
[1770176910714,2.33810087,2281.8,2280.9,0.7395294]
[1770176913318,2.33810087,2281.8,2280.8,0.21951]
[1770176914113,2.33810087,2281.8,2280.8,0.9374375]
[1770176914616,2.33810087,2281.8,2280.9,0.71445471]
[1770176914812,2.34359647,2282.0,2281.1,0.21948]
[1770176919623,2.34359647,2282.0,2280.8,0.69258509]
[1770176921029,2.34359647,2282.0,2280.7,0.21952]
[1770176922129,2.34359647,2282.0,2280.7,0.91834277]
[1770176924130,2.34359647,2282.0,2280.7,0.21952]
[1770176925327,2.33810087,2281.9,2280.7,0.21952]
[1770176926530,2.33810087,2281.8,2280.7,0.21952]
[1770176927123,2.33810087,2281.8,2280.2,2.06296254]
[1770176927430,2.33810087,2281.7,2280.2,2.06296254]
[1770176927627,2.33810087,2281.5,2280.2,2.06296254]
[1770176928731,2.33810087,2281.5,2280.3,0.21956]
[1770176928932,2.33810087,2281.5,2280.3,1.13874063]
[1770176931434,2.33810087,2281.5,2280.2,3.69882483]
[1770176931435,2.33810087,2281.5,2280.5,0.9278765]
[1770176932630,2.33810087,2281.5,2280.5,1.1474165]
[1770176932827,2.33810087,2281.5,2280.2,6.64954495]
[1770176933026,2.38571589,2280.8,2279.6,2.43140148]
[1770176933231,2.38571589,2280.6,2279.6,2.43140148]
[1770176933934,2.38571589,2280.6,2279.4,0.21965]
[1770176934230,2.38571589,2280.6,2279.4,2.65105148]
[1770176937537,2.31570938,2280.4,2279.4,2.65105148]
[1770176937835,2.32111225,2280.4,2279.4,2.65105148]
[1770176939936,2.32111225,2280.4,2279.6,2.71492644]
[1770176939937,0.00540287,2280.4,2279.6,2.71492644]
[1770176940531,0.00540287,2280.4,2279.8,2.49529644]
[1770176940837,2.31570938,2281.0,2280.2,2.49529644]
[1770176941532,2.31570938,2281.2,2280.2,2.49529644]
[1770176941734,0.00427236,2281.2,2280.4,2.49529644]
[1770176942234,2.31998174,2281.2,2280.4,2.49529644]
[1770176942635,0.00427236,2281.2,2280.4,2.71484644]
[1770176943037,0.00427236,2281.2,2280.6,2.49529644]
[1770176943541,2.31570938,2281.6,2280.6,2.71481644]
[1770176944539,2.32129573,2281.6,2280.6,2.71481644]
[1770176946344,0.00558635,2281.6,2281.0,2.49529644]
[1770176949244,2.32129573,2281.6,2280.9,0.2195]
[1770176950335,2.32129573,2281.6,2280.8,2.49529644]
[1770176950540,2.32129573,2281.6,2280.4,2.71484644]
[1770176950739,2.32129573,2281.6,2280.2,0.0043707]
[1770176950740,2.32129573,2281.6,2280.6,2.49529644]
[1770176958948,2.063,2281.5,2280.6,2.49529644]
[1770176959147,2.31570938,2281.4,2280.6,2.49529644]
[1770176962351,2.31570938,2281.4,2280.5,0.21954]
[1770176962551,2.31570938,2281.4,2280.5,2.67997429]
[1770176964454,2.31570938,2281.4,2280.6,2.46043429]
[1770176964651,4.42479699,2281.5,2280.8,2.46043429]
[1770176967552,2.36179699,2281.4,2280.8,2.46043429]
[1770176967750,0.00558635,2281.6,2280.8,2.67994429]
[1770176968055,0.00558635,2281.6,2281.0,2.46043429]
[1770176969154,5.25252888,2281.6,2281.0,2.46043429]
[1770176970152,2.36179699,2281.5,2280.9,2.67993429]
[1770176970957,2.36179699,2281.5,2280.9,0.2195]
[1770176971251,7.60873952,2281.5,2280.9,0.2195]
[1770176971454,2.36179699,2281.4,2280.9,0.2195]
[1770176972455,2.36179699,2281.4,2280.9,2.67993429]
[1770176973352,2.36179699,2281.4,2280.9,0.2195]
[1770176976257,4.43479699,2281.4,2280.9,0.2195]
[1770176976558,2.36179699,2281.3,2280.9,0.2195]
[1770176976754,4.43479699,2281.4,2280.9,0.2195]
[1770176977054,4.43479699,2281.4,2280.9,2.67993429]
[1770176977256,5.25252888,2281.6,2281.1,2.67991429]
[1770176977451,7.32094253,2281.8,2281.1,2.67991429]
[1770176977652,5.24694253,2281.8,2281.2,2.67990429]
[1770176978052,8.63964488,2282.0,2281.2,2.67990429]
[1770176978053,5.24694253,2281.9,2281.2,2.67990429]
[1770176978251,5.24694253,2281.8,2281.2,2.67990429]
[1770176978460,0.00549432,2281.8,2281.2,2.67990429]
[1770176979460,2.36179699,2281.7,2280.7,2.67995429]
[1770176979661,2.36179699,2281.7,2280.3,6.4009512]
[1770176979662,5.24694253,2281.6,2280.9,2.67993429]
[1770176979955,5.25243685,2281.8,2281.1,2.46043429]
[1770176980358,5.25243685,2281.8,2281.1,2.67991429]
[1770176980560,0.00549432,2281.8,2281.1,2.67991429]
[1770176980759,2.36729131,2281.8,2281.1,2.67991429]
[1770176980958,2.36179699,2281.7,2281.1,0.21948]
[1770176984358,0.00549432,2281.8,2281.1,2.67991429]
[1770176984657,0.00549432,2281.8,2281.3,2.46043429]
[1770176988259,0.00549432,2281.8,2280.5,5.10419114]
[1770176988260,2.36179699,2282.2,2281.5,2.67987429]
[1770176988864,2.36179699,2282.2,2281.5,0.21944]
[1770176989066,2.36643588,2282.2,2281.5,0.21944]
[1770176989467,2.36643588,2282.2,2281.5,2.67987429]
[1770176994968,2.36643588,2282.2,2281.5,0.21944]
[1770176996464,2.36643588,2282.2,2281.0,2.40102832]
[1770176997368,2.45261992,2282.1,2281.0,2.62051832]
[1770176998469,2.45261992,2282.1,2281.2,2.62049832]
[1770176998669,2.45261992,2282.1,2281.4,2.40102832]
[1770176999268,2.45261992,2282.1,2281.4,2.62047832]
[1770176999571,0.00463889,2282.2,2281.4,2.62047832]
[1770177000872,0.00463889,2282.2,2281.6,2.40102832]
[1770177001073,0.00463889,2282.2,2281.6,2.62046832]
[1770177001269,2.45261992,2282.7,2281.9,2.62042832]
[1770177002176,2.45635658,2282.7,2281.9,0.22373151]
[1770177002470,2.45635658,2282.7,2281.2,3.82814335]
[1770177002471,2.45261992,2282.2,2281.2,2.40102832]
[1770177002672,2.45261992,2282.1,2280.9,2.62052832]
[1770177003074,2.45261992,2281.9,2280.9,2.62052832]
[1770177003473,2.45261992,2281.9,2280.9,2.62487883]
[1770177005182,2.45261992,2281.9,2280.9,0.22385051]
[1770177005678,2.45261992,2281.9,2280.9,2.62487883]
[1770177005875,2.45261992,2281.8,2280.9,0.22385051]
[1770177007188,2.45261992,2281.7,2280.9,0.22385051]
[1770177010781,2.45261992,2281.7,2280.9,2.62487883]
[1770177013689,2.45261992,2281.7,2280.9,2.62487883]
[1770177015090,2.45261992,2281.7,2280.9,0.22385051]
[1770177016189,7.69956245,2281.7,2280.9,0.00435051]
[1770177016394,2.45261992,2281.6,2280.6,2.40102832]
[1770177017391,2.45261992,2281.6,2280.6,2.40548143]
[1770177017586,2.45261992,2281.6,2280.6,2.62501143]
[1770177020596,2.45261992,2281.5,2280.6,2.62501143]
[1770177024200,1.43716191,2281.4,2280.6,2.62501143]
[1770177024397,2.2788768,2281.3,2280.6,2.62501143]
[1770177024898,2.2788768,2281.3,2280.6,0.22398311]
[1770177029400,2.2788768,2281.3,2280.2,2.38088573]
[1770177029597,2.2788768,2281.3,2280.6,0.21952]
[1770177029796,2.2788768,2281.3,2280.2,2.38088573]
[1770177030304,7.52581933,2281.3,2280.2,2.38088573]
[1770177030505,2.2788768,2281.2,2280.2,2.38646998]
[1770177032402,2.2788768,2280.9,2280.2,2.38646998]
[1770177032607,2.28303981,2280.9,2280.2,2.38646998]
[1770177032808,2.28303981,2280.9,2280.2,0.00558425]
[1770177037712,0.00416301,2280.9,2280.5,2.38088573]
[1770177037913,2.2788768,2281.2,2280.5,2.38088573]
[1770177038911,2.283352,2281.2,2280.5,2.38088573]
[1770177039111,2.283352,2281.2,2280.4,0.21955]
[1770177042612,2.2788768,2281.1,2280.4,0.21955]
[1770177046111,2.2788768,2281.0,2280.4,0.21955]
[1770177048320,2.2788768,2281.0,2280.4,2.60043573]
[1770177048921,2.2788768,2281.0,2280.4,0.21955]
[1770177049122,2.2788768,2281.0,2280.2,0.00558425]
[1770177049324,7.52581933,2281.0,2280.2,0.00558425]
[1770177049520,2.2788768,2280.9,2280.2,0.00558425]
[1770177052123,3.71665142,2280.9,2280.2,0.00558425]
[1770177052422,2.48517459,2280.8,2280.2,0.00558425]
[1770177054125,2.48517459,2280.8,2279.9,2.70569971]
[1770177055120,1.43777462,2280.7,2279.9,0.22512436]
[1770177055316,2.48517459,2280.6,2279.9,0.22512436]
[1770177055524,2.48517459,2280.6,2280.1,3.92387433]
[1770177055727,2.48517459,2280.8,2280.2,2.48609971]
[1770177057426,1.43777462,2281.1,2280.2,2.48609971]
[1770177057427,2.34149972,2281.0,2280.3,2.37811222]
[1770177058327,2.34149972,2280.9,2280.3,2.37811222]
[1770177061831,5.25141773,2281.2,2280.6,2.59764222]
[1770177062130,0.0044752,2281.2,2280.6,2.59764222]
[1770177062330,2.34597492,2281.2,2280.6,2.59764222]
[1770177064831,0.0044752,2281.2,2280.6,2.59764222]
[1770177065725,11.97644225,2281.7,2281.0,2.59760222]
[1770177065928,7.58844225,2281.9,2281.2,1.43777462]
[1770177066232,2.34149972,2281.9,2281.2,3.81588684]
[1770177066534,2.34149972,2281.9,2281.2,2.37811222]
[1770177066833,2.34690329,2281.9,2281.0,0.21949]
[1770177069935,2.34690329,2281.9,2281.0,2.59760222]
[1770177074636,5.24694253,2282.9,2281.8,2.37811222]
[1770177074835,1.43638288,2282.8,2281.8,0.21942]
[1770177075034,6.67185571,2282.8,2281.8,0.21942]
[1770177075234,6.67185571,2282.8,2281.3,2.59757222]
[1770177075731,6.67699856,2282.8,2281.3,2.6017126]
[1770177076639,2.34149972,2282.7,2281.3,2.6017126]
[1770177077236,2.34149972,2282.7,2281.4,2.59756222]
[1770177078143,2.34149972,2282.7,2281.7,2.59753222]
[1770177078341,2.34149972,2282.5,2281.7,2.59753222]
[1770177080141,2.34149972,2282.7,2281.9,2.59752222]
[1770177080442,0.00514285,2282.8,2282.1,2.37811222]
[1770177080843,0.00514285,2282.8,2282.1,2.59749222]
[1770177081246,2.40504635,2283.2,2282.5,2.53846573]
[1770177081644,2.40504635,2283.2,2282.0,2.53851573]
[1770177082350,2.40504635,2283.0,2282.0,0.2194]
[1770177083345,2.40504635,2283.0,2282.0,2.53851573]
[1770177085149,2.40504635,2283.0,2282.0,0.2194]
[1770177089953,2.40504635,2282.9,2281.8,2.31911573]
[1770177090153,2.40504635,2282.8,2281.6,2.31911573]
[1770177090746,2.40504635,2282.7,2281.6,2.31911573]
[1770177090946,2.40504635,2282.5,2281.6,2.31911573]
[1770177092054,2.40504635,2282.5,2281.6,2.53854573]
[1770177093156,2.40504635,2282.5,2281.8,2.31911573]
[1770177093553,2.40504635,2282.5,2281.8,2.53852573]
[1770177093958,2.40504635,2282.7,2281.8,2.53852573]
[1770177094459,2.40504635,2282.7,2282.0,2.31911573]
[1770177095149,2.40504635,2282.7,2281.9,0.21941]
[1770177096959,2.40504635,2282.7,2281.9,2.53852573]
[1770177101264,7.64051918,2282.7,2281.9,2.53852573]
[1770177101866,2.40504635,2282.6,2281.9,2.53852573]
[1770177103169,5.23547283,2282.7,2281.9,2.53852573]
[1770177103370,9.68751918,2282.8,2282.1,2.31911573]
[1770177104070,2.40504635,2282.8,2282.1,2.31911573]
[1770177106372,7.64051918,2282.9,2282.1,2.31911573]
[1770177106572,2.40504635,2282.8,2282.1,2.31911573]
[1770177113373,2.48860462,2282.6,2281.7,2.34535682]
[1770177113670,2.48860462,2282.5,2281.7,2.56477682]
[1770177118275,2.45239193,2282.4,2281.7,0.21942]
[1770177118872,2.45239193,2282.2,2281.7,0.21942]
[1770177122973,2.45239193,2282.2,2281.7,2.64572771]
[1770177128969,2.45239193,2282.2,2281.7,0.21942]
[1770177129177,2.45239193,2281.9,2281.3,2.64990809]
[1770177129371,2.45239193,2281.7,2281.3,0.00414038]
[1770177129571,1.43600016,2281.4,2280.7,3.82814335]
[1770177129771,3.88839209,2281.4,2280.7,2.42630771]
[1770177129978,1.43600016,2281.4,2280.7,2.42630771]
[1770177130172,2.45239193,2281.3,2280.5,2.64584771]
[1770177130675,2.45239193,2281.1,2280.5,0.22361144]
[1770177130970,2.45239193,2280.9,2280.5,0.00407144]
[1770177138679,2.45239193,2280.9,2280.3,2.42630771]
[1770177138979,2.45239193,2280.9,2280.2,0.21957]
[1770177139781,2.45239193,2280.9,2280.2,0.22307222]